bitfinex/quotes_ETHUSD_20241023
["timestamp","ask_amount","ask_price","bid_price","bid_amount"]
[1729691251433,4.48195794,2583.0,2582.5,4.65081]
[1729691251643,4.48195794,2583.0,2582.5,3.87214]
[1729691251644,8.35350794,2583.0,2582.5,3.87214]
[1729691251848,3.87181,2582.8,2582.3,3.8724]
[1729691252013,3.872,2582.7,2582.2,4.68725]
[1729691252214,3.87181,2582.8,2582.3,3.87241]
[1729691252440,3.87181,2582.8,2582.4,0.05807465]
[1729691252655,3.87132,2583.1,2582.5,3.87209]
[1729691252944,0.7651,2583.3,2582.8,3.87169]
[1729691253149,3.87126,2583.2,2582.7,3.8719]
[1729691253558,3.87125,2583.2,2582.6,3.87195]
[1729691253731,3.87125,2583.2,2582.7,3.87182]
[1729691254550,5.24705794,2583.3,2582.7,3.87182]
[1729691254717,0.7651,2583.3,2582.9,3.87161]
[1729691255144,0.7651,2583.3,2583.0,0.05806355]
[1729691256213,8.35263794,2583.6,2583.0,3.92950355]
[1729691256413,3.87095,2583.4,2582.8,0.55]
[1729691256737,3.87095,2583.4,2583.0,3.87146]
[1729691256938,3.87071,2583.5,2583.0,3.87134]
[1729691257182,9.11762794,2583.6,2583.0,3.87134]
[1729691257326,4.63567,2583.6,2583.1,3.87118]
[1729691257754,4.63566,2583.6,2583.1,3.87118]
[1729691258170,0.7651,2583.6,2583.2,3.87113]
[1729691258319,0.7651,2583.6,2583.0,0.55]
[1729691258520,3.87081,2583.5,2583.0,0.55]
[1729691258739,3.87094,2583.4,2583.0,0.55]
[1729691259059,3.8711,2583.3,2583.0,0.55]
[1729691259260,3.8711,2583.3,2582.9,3.92966904]
[1729691259557,4.48195794,2583.3,2582.6,4.42206]
[1729691259873,0.7651,2583.1,2582.4,0.86467465]
[1729691260161,3.87194,2582.7,2582.4,0.86467465]
[1729691260322,3.87194,2582.7,2582.4,0.05807465]
[1729691260522,0.7651,2583.1,2582.4,0.05807465]
[1729691260523,3.87162,2582.9,2582.4,3.93032465]
[1729691260724,3.87178,2582.8,2582.4,3.93032465]
[1729691260985,3.87162,2582.9,2582.4,3.93032465]
[1729691261145,7.74336,2582.9,2582.4,3.93032465]
[1729691261345,3.87162,2582.9,2582.4,3.93032465]
[1729691261555,7.74336,2582.9,2582.4,3.93032465]
[1729691261756,3.87162,2582.9,2582.4,3.93032465]
[1729691261985,3.87162,2582.9,2582.4,3.93041465]
[1729691262399,3.87162,2582.9,2582.4,7.80270465]
[1729691262560,3.87162,2582.9,2582.4,3.93036465]
[1729691262760,3.87162,2582.9,2582.4,7.80264465]
[1729691262965,3.87162,2582.9,2582.4,3.93035465]
[1729691263190,3.87162,2582.9,2582.5,3.8722]
[1729691263690,5.25935645,2583.1,2582.5,3.87212]
[1729691264000,3.87132,2583.1,2582.6,3.94949844]
[1729691264306,3.87119,2583.2,2582.6,3.94943342]
[1729691264602,3.87119,2583.2,2582.7,3.87191]
[1729691264760,7.74224,2583.3,2582.8,3.87168]
[1729691264956,3.87119,2583.2,2582.8,3.87168]
[1729691265194,5.25935645,2583.4,2582.7,4.65397]
[1729691265195,9.13022645,2583.4,2582.7,4.65397]
[1729691265501,3.8711,2583.3,2582.8,3.87169]
[1729691265802,3.87117,2583.2,2582.8,3.87169]
[1729691266775,3.87108,2583.3,2582.8,3.87169]
[1729691266970,3.87117,2583.2,2582.8,3.87169]
[1729691267382,9.13022645,2583.4,2582.8,3.87169]
[1729691267562,3.87103,2583.3,2582.8,3.87164]
[1729691267768,3.8712,2583.2,2582.8,3.87164]
[1729691268159,3.8712,2583.2,2582.7,4.65393]
[1729691268473,3.8712,2583.2,2582.8,3.87174]
[1729691269713,3.87133,2583.1,2582.7,0.7821]
[1729691269871,3.87133,2583.1,2582.7,1.69670975]
[1729691270075,3.87133,2583.1,2582.7,5.56855975]
[1729691270286,3.87103,2583.3,2582.7,1.69670975]
[1729691270287,3.87117,2583.2,2582.7,1.69670975]
[1729691270487,3.87117,2583.2,2582.8,3.87169]
[1729691270718,3.87117,2583.2,2582.7,5.56860975]
[1729691271498,3.8701,2584.0,2583.1,0.7687]
[1729691271499,0.7651,2583.8,2583.1,0.7687]
[1729691271686,4.63503,2584.1,2583.4,0.55]
[1729691271879,0.7651,2584.1,2583.7,3.87034]
[1729691272126,12.23345645,2584.3,2583.7,3.87032]
[1729691272278,0.7651,2584.4,2583.9,3.87007]
[1729691272476,3.86954,2584.3,2583.9,3.87007]
[1729691272676,3.86954,2584.3,2583.8,0.07739702]
[1729691272912,0.7651,2584.4,2583.7,3.94051451]
[1729691273121,4.63449,2584.4,2583.9,3.87004]
[1729691273523,4.63449,2584.4,2583.9,3.87011]
[1729691273524,3.86962,2584.3,2583.9,3.87011]
[1729691273732,4.63449,2584.4,2583.9,3.87011]
[1729691273903,4.63449,2584.4,2583.9,7.74015]
[1729691274108,4.63449,2584.4,2583.7,4.34120145]
[1729691274419,4.49425645,2584.3,2583.6,0.83890451]
[1729691274598,3.86975,2584.2,2583.7,3.87034]
[1729691274800,7.73953,2584.2,2583.7,3.87034]
[1729691275234,3.86966,2584.2,2583.6,0.7687]
[1729691275388,3.8702,2583.9,2583.5,0.55]
[1729691275592,8.36424645,2584.0,2583.5,4.42061]
[1729691276833,3.87014,2583.9,2583.5,4.42061]
[1729691276987,4.63448,2584.4,2583.5,4.49801577]
[1729691276988,3.86975,2584.2,2583.5,4.49801577]
[1729691277192,3.86975,2584.2,2583.5,5.03207313]
[1729691277437,3.86989,2584.1,2583.6,3.87048]
[1729691277636,3.86998,2584.0,2583.5,1.08405736]
[1729691277993,8.36423645,2584.0,2583.5,1.08405736]
[1729691278200,8.36473645,2583.7,2583.3,0.05805784]
[1729691278395,3.87067,2583.6,2583.3,0.05805784]
[1729691278826,3.87075,2583.5,2583.3,0.05805784]
[1729691279330,3.87058,2583.6,2583.3,0.05805784]
[1729691279636,3.87079,2583.5,2583.3,0.05805784]
[1729691279999,3.87086,2583.4,2583.3,0.05805784]
[1729691280238,5.25935645,2583.4,2582.6,0.84459461]
[1729691280535,5.25935645,2583.4,2582.7,3.94932246]
[1729691280536,9.13025645,2583.4,2582.7,3.94932246]
[1729691280697,9.13025645,2583.4,2582.7,3.87189]
[1729691280698,3.87117,2583.2,2582.7,3.87189]
[1729691280894,13.00120645,2583.4,2582.8,3.87164]
[1729691281131,9.13025645,2583.4,2582.9,0.05806897]
[1729691281704,3.87101,2583.3,2582.9,0.05806897]
[1729691282117,3.87034,2583.8,2583.0,1.3245]
[1729691282319,3.86989,2584.1,2583.6,3.87048]
[1729691282650,3.86998,2584.0,2583.6,0.7819]
[1729691282940,3.86998,2584.0,2583.6,4.65245]
[1729691283440,3.86998,2584.0,2583.3,4.65309]
[1729691283441,3.87018,2583.9,2583.3,4.65309]
[1729691283738,3.50784656,2583.6,2583.0,1.3321]
[1729691284049,3.87051,2583.7,2583.2,3.87114]
[1729691284401,3.87051,2583.7,2583.2,3.8711]
[1729691284812,7.37818656,2583.8,2583.2,3.8711]
[1729691285015,0.7651,2584.0,2583.0,5.20346]
[1729691285016,3.87088,2583.4,2583.0,5.20346]
[1729691285216,7.37853656,2583.6,2583.0,4.65346]
[1729691285416,7.37853656,2583.6,2583.0,3.87136]
[1729691285417,0.7651,2583.4,2583.0,3.87136]
[1729691285623,3.87078,2583.5,2583.0,0.4750329]
[1729691285917,3.87111,2583.3,2582.9,0.05806897]
[1729691286227,7.37910656,2583.2,2582.9,0.05806897]
[1729691286739,3.87146,2583.0,2582.9,0.05806897]
[1729691287297,7.37930656,2583.0,2582.9,0.05806897]
[1729691288021,3.87217,2582.6,2582.1,3.87276]
[1729691288207,7.38001656,2582.6,2582.1,0.466986]
[1729691288405,3.87217,2582.6,2582.2,3.87264]
[1729691288628,8.36732762,2582.7,2582.3,3.8725]
[1729691288943,0.7651,2583.0,2582.3,3.8725]
[1729691288944,9.13204762,2583.0,2582.3,3.87251]
[1729691289245,9.13204762,2583.0,2582.5,3.87221]
[1729691289808,3.87161,2582.9,2582.3,3.87244]
[1729691290040,3.87178,2582.8,2582.3,3.87244]
[1729691290240,3.87178,2582.8,2582.3,3.87243]
[1729691290441,9.13200762,2583.0,2582.2,0.0580791]
[1729691290442,4.49540762,2582.7,2582.2,0.0580791]
[1729691290641,3.87229,2582.5,2582.2,0.0580791]
[1729691290805,4.49540762,2582.7,2582.3,3.87247]
[1729691291007,3.87212,2582.6,2582.2,0.0580791]
[1729691291527,12.23945762,2582.7,2582.2,0.0580791]
[1729691291715,3.87229,2582.5,2582.2,0.0580791]
[1729691292044,3.87237,2582.4,2582.2,0.0580791]
[1729691292257,3.87227,2582.5,2582.2,0.0580791]
[1729691293618,8.36743762,2582.7,2582.3,3.87251]
[1729691293820,3.8718,2582.8,2582.3,3.87251]
[1729691294350,3.87162,2582.9,2582.3,3.87243]
[1729691294507,3.87162,2582.9,2582.4,3.87233]
[1729691294711,3.87162,2582.9,2582.4,3.87236]
[1729691294934,4.63578,2583.6,2583.0,3.87135]
[1729691295230,4.63578,2583.6,2583.1,4.70923922]
[1729691295231,3.87058,2583.6,2583.1,4.70923922]
[1729691295456,3.87043,2583.7,2583.1,4.63181]
[1729691295659,4.63532,2583.9,2583.3,3.87094]
[1729691295865,0.7651,2583.9,2583.4,3.8708]
[1729691296070,3.87012,2583.9,2583.4,0.05805918]
[1729691296238,3.87035,2583.8,2583.4,0.05805918]
[1729691296450,3.87035,2583.8,2583.4,0.8843875]
[1729691296976,3.87012,2583.9,2583.5,3.87071]
[1729691297176,12.23523762,2584.1,2583.6,4.64154]
[1729691297375,3.8701,2584.0,2583.6,0.771]
[1729691297573,3.87023,2583.9,2583.6,0.771]
[1729691298240,3.8703,2583.8,2583.6,0.771]
[1729691298771,3.87002,2584.0,2583.6,0.771]
[1729691299081,3.87012,2583.9,2583.6,0.771]
[1729691299237,3.87028,2583.8,2583.6,0.771]
[1729691299437,3.87002,2584.0,2583.6,0.771]
[1729691299668,8.36523762,2584.1,2583.6,4.6415]
[1729691299897,0.7651,2584.6,2584.0,3.86988]
[1729691300191,4.63396,2584.8,2584.3,3.86942]
[1729691300336,4.63395,2584.8,2584.3,3.86942]
[1729691300539,8.36397762,2585.0,2584.3,3.86942]
[1729691300540,12.23259762,2585.0,2584.3,3.86942]
[1729691300771,8.36397762,2585.0,2584.4,4.68071]
[1729691300977,3.86869,2584.9,2584.4,4.68071]
[1729691301438,3.86862,2584.9,2584.4,0.8114]
[1729691301639,3.86862,2584.9,2584.4,0.86943719]
[1729691301952,3.86885,2584.8,2584.4,0.86943719]
[1729691302277,3.86879,2584.8,2584.4,0.86943719]
[1729691302528,4.49540762,2585.0,2584.5,3.8692]
[1729691302699,8.36390762,2585.0,2584.5,3.8692]
[1729691302882,6.86795,2585.4,2584.5,0.86080472]
[1729691302883,8.36352762,2585.3,2584.5,0.86080472]
[1729691303090,8.36399762,2585.0,2584.5,3.86919]
[1729691303286,8.36399762,2585.0,2584.5,3.86914]
[1729691303287,4.49540762,2585.0,2584.5,3.86914]
[1729691303518,4.49540762,2585.0,2584.6,3.86904]
[1729691304016,4.49540762,2585.0,2584.5,3.86914]
[1729691304217,4.49540762,2585.0,2584.6,3.86904]
[1729691304515,3.86841,2585.1,2584.6,4.72980172]
[1729691305015,7.73686,2585.1,2584.6,0.86076172]
[1729691305221,8.36391762,2585.0,2584.6,0.86076172]
[1729691305371,8.36391762,2585.0,2584.4,0.86943719]
[1729691305372,4.49540762,2585.0,2584.4,0.86943719]
[1729691305709,4.49540762,2585.0,2584.6,7.73796]
[1729691305874,3.87281,2585.5,2584.8,0.8207]
[1729691306098,0.005,2585.5,2585.1,3.8683]
[1729691306307,0.005,2585.5,2585.1,4.26286707]
[1729691306506,0.005,2585.5,2585.1,0.39456707]
[1729691306772,0.005,2585.5,2584.8,0.8207]
[1729691306773,3.86787,2585.4,2584.8,0.8207]
[1729691307023,4.49540762,2585.0,2584.8,0.8207]
[1729691307221,4.49540762,2585.0,2584.4,3.92730719]
[1729691307222,3.86862,2584.9,2584.4,0.05803719]
[1729691307434,3.86901,2584.7,2584.4,0.05803719]
[1729691307601,3.869,2584.7,2584.4,0.05803719]
[1729691307922,3.86907,2584.6,2584.4,0.05803719]
[1729691308315,3.86922,2584.5,2584.4,0.05803719]
[1729691310026,3.87011,2583.9,2583.4,4.72001918]
[1729691310206,3.87011,2583.9,2583.5,0.47200192]
[1729691310517,8.36532762,2584.1,2583.5,0.47200192]
[1729691310727,4.49540762,2583.8,2583.4,0.84925918]
[1729691311110,3.87017,2583.9,2583.4,4.72003918]
[1729691311305,3.87037,2583.8,2583.4,0.84925918]
[1729691311614,3.87011,2583.9,2583.4,0.84925918]
[1729691311933,3.87004,2584.0,2583.4,0.84925918]
[1729691312147,3.87019,2583.9,2583.4,4.72006918]
[1729691312301,3.87019,2583.9,2583.4,5.5791701]
[1729691312847,3.0,2584.2,2583.7,3.8704]
[1729691313045,0.7651,2584.4,2583.8,3.87026]
[1729691313196,14.08733,2584.5,2584.0,4.70178]
[1729691313401,3.86959,2584.3,2583.9,0.05804689]
[1729691313632,3.8696,2584.3,2583.9,0.05804689]
[1729691314343,3.8693,2584.5,2583.9,4.40410758]
[1729691314344,3.86932,2584.5,2583.9,4.40410758]
[1729691314522,3.86967,2584.2,2583.9,0.05804689]
[1729691315210,3.86993,2584.1,2583.7,0.8319]
[1729691315503,4.49540762,2584.1,2583.5,0.8052]
[1729691315715,3.87042,2583.7,2583.5,0.8052]
[1729691315895,3.87038,2583.8,2583.5,0.8052]
[1729691316123,3.87046,2583.7,2583.4,0.05805918]
[1729691316318,3.87038,2583.8,2583.4,0.05805918]
[1729691316525,3.87038,2583.8,2583.4,3.92889918]
[1729691317037,3.86975,2584.2,2583.7,3.8704]
[1729691317241,3.86986,2584.1,2583.6,3.87055]
[1729691317403,3.86986,2584.1,2583.5,4.67581]
[1729691317602,3.87006,2584.0,2583.6,0.55943861]
[1729691317840,3.87021,2583.9,2583.5,0.8052]
[1729691318144,3.87006,2584.0,2583.5,8.54642]
[1729691318500,3.87006,2584.0,2583.5,0.8052]
[1729691318701,3.87033,2583.8,2583.5,0.8052]
[1729691319155,3.8705,2583.7,2583.5,0.8052]
[1729691319344,3.8705,2583.7,2583.4,0.9185761]
[1729691319512,3.8705,2583.7,2583.4,0.05805918]
[1729691319841,0.7651,2584.0,2583.5,3.87069]
[1729691320007,7.74041,2583.9,2583.4,3.92889918]
[1729691320340,7.74039,2583.9,2583.4,3.92889918]
[1729691320647,3.86953,2584.3,2583.6,0.8166]
[1729691320648,0.7651,2584.3,2583.6,0.8166]
[1729691320935,3.86989,2584.1,2583.6,4.68706]
[1729691321153,3.86989,2584.1,2583.6,5.16157192]
[1729691321849,3.86997,2584.0,2583.6,5.16157192]
[1729691322053,3.87019,2583.9,2583.6,1.29111192]
[1729691322214,3.87019,2583.9,2583.4,3.92880918]
[1729691322416,3.87043,2583.7,2583.4,0.87465918]
[1729691322959,3.87065,2583.6,2583.4,0.05805918]
[1729691323459,3.87043,2583.7,2583.4,0.05805918]
[1729691323697,5.26050762,2583.8,2583.4,0.05805918]
[1729691323848,3.87023,2583.9,2583.4,3.92885918]
[1729691324039,3.0,2584.0,2583.6,4.62209]
[1729691324384,3.86953,2584.3,2583.7,3.87028]
[1729691324580,14.85243,2584.5,2583.9,3.86998]
[1729691324581,3.86933,2584.5,2583.9,3.86998]
[1729691324918,7.37673113,2584.4,2584.1,0.7516]
[1729691325170,3.86928,2584.5,2584.1,0.7516]
[1729691325343,3.86922,2584.5,2584.1,0.7516]
[1729691325544,7.37647113,2584.6,2584.1,0.7516]
[1729691325747,3.86922,2584.5,2584.1,0.7516]
[1729691326154,7.37646113,2584.6,2584.1,5.47635366]
[1729691326377,3.86917,2584.6,2584.1,5.47635366]
[1729691326673,3.86926,2584.5,2584.1,1.60656366]
[1729691327034,4.48823714,2584.8,2584.1,1.60656366]
[1729691327035,3.86944,2584.4,2584.1,1.60656366]
[1729691327236,3.8696,2584.3,2584.0,0.05804551]
[1729691327476,3.86932,2584.5,2584.0,3.92794551]
[1729691327833,3.86975,2584.2,2584.0,0.05804551]
[1729691328075,3.86946,2584.4,2584.0,3.92793551]
[1729691328380,3.86952,2584.3,2584.0,0.05804551]
[1729691329065,3.86903,2584.7,2584.0,4.78687606]
[1729691329243,3.86913,2584.6,2584.1,3.86975]
[1729691329987,3.86903,2584.7,2584.2,3.8696]
[1729691330181,3.86902,2584.7,2584.2,3.86959]
[1729691330477,3.86902,2584.7,2584.3,0.7972]
[1729691330984,3.86905,2584.7,2584.3,0.7972]
[1729691331281,3.86892,2584.7,2584.3,0.7972]
[1729691331480,3.86909,2584.6,2584.3,0.7972]
[1729691331781,3.86923,2584.5,2584.3,0.7972]
[1729691332135,3.86923,2584.5,2584.1,3.86979]
[1729691332338,3.86923,2584.5,2584.0,4.74039551]
[1729691332563,3.86923,2584.5,2584.0,5.60144306]
[1729691332766,3.8694,2584.4,2584.0,5.60144306]
[1729691333153,8.35745714,2584.5,2584.1,3.8698]
[1729691333383,12.22674714,2584.5,2584.0,5.60143306]
[1729691333555,8.35745714,2584.5,2584.0,5.60143306]
[1729691333881,3.86937,2584.4,2584.0,1.73149306]
[1729691334054,3.86937,2584.4,2584.0,0.87044551]
[1729691334397,8.35745714,2584.5,2584.0,0.87044551]
[1729691334561,3.86953,2584.3,2584.0,0.87044551]
[1729691334748,8.35745714,2584.5,2584.0,0.87044551]
[1729691334949,3.86947,2584.4,2584.0,0.87044551]
[1729691335279,3.86956,2584.3,2584.0,0.87044551]
[1729691335580,3.86947,2584.4,2584.0,0.87044551]
[1729691336572,3.86914,2584.6,2584.1,3.86971]
[1729691336779,7.73828,2584.6,2584.1,3.86971]
[1729691336994,3.86914,2584.6,2584.1,3.86971]
[1729691337184,8.35712714,2584.8,2584.0,4.74039551]
[1729691337185,3.86894,2584.7,2584.2,3.86958]
[1729691337355,8.35708714,2584.8,2584.2,3.86958]
[1729691337561,3.86897,2584.7,2584.1,4.41981]
[1729691337760,3.86897,2584.7,2584.2,3.86957]
[1729691338563,3.86914,2584.6,2584.1,4.39883555]
[1729691338764,3.86914,2584.6,2584.1,3.86981]
[1729691339067,3.86897,2584.7,2584.1,3.92775238]
[1729691339267,3.86897,2584.7,2584.2,3.8696]
[1729691339601,3.86916,2584.6,2584.2,3.86964]
[1729691339982,4.48823714,2584.5,2584.1,0.05804238]
[1729691340189,3.86943,2584.4,2584.1,0.05804238]
[1729691340700,3.86954,2584.3,2584.1,0.05804238]
[1729691340905,3.86989,2584.1,2583.7,0.8135]
[1729691341100,3.87003,2584.0,2583.7,0.8135]
[1729691341607,4.48823714,2583.9,2583.4,3.87085]
[1729691341959,3.87035,2583.8,2583.3,8.55921]
[1729691342183,3.87035,2583.8,2583.3,4.6884]
[1729691342384,3.87035,2583.8,2583.4,0.05805244]
[1729691342572,8.35842714,2583.9,2583.4,3.92877244]
[1729691342784,3.87043,2583.7,2583.4,0.05805244]
[1729691343165,4.48823714,2583.6,2583.4,0.05805244]
[1729691343821,4.48823714,2583.9,2583.4,3.92889244]
[1729691344022,3.86991,2584.1,2583.5,3.87071]
[1729691344211,3.86991,2584.1,2583.6,4.64806]
[1729691344697,3.86991,2584.1,2583.7,3.8704]
[1729691345089,3.86991,2584.1,2583.6,4.64808]
[1729691345290,3.86991,2584.1,2583.7,3.87041]
[1729691345489,8.35797714,2584.2,2583.9,0.05804885]
[1729691345724,4.48823714,2584.2,2583.9,0.05804885]
[1729691346026,3.86893,2584.7,2584.2,3.86956]
[1729691346179,3.86893,2584.7,2584.0,0.7643]
[1729691346180,5.25003714,2584.8,2584.0,0.7643]
[1729691346504,7.73946,2584.2,2584.0,0.7643]
[1729691346704,7.73946,2584.2,2583.9,0.05804885]
[1729691346705,3.86983,2584.1,2583.9,0.05804885]
[1729691347098,3.86996,2584.0,2583.9,0.05804885]
[1729691348291,7.3785444,2584.0,2583.9,0.05804885]
[1729691348807,8.1403444,2584.0,2583.9,0.05804885]
[1729691349322,3.87052,2583.7,2583.4,0.05805244]
[1729691349621,3.87027,2583.8,2583.4,3.92885244]
[1729691349622,3.87029,2583.8,2583.4,3.92885244]
[1729691349784,7.3786544,2584.0,2583.5,4.65068824]
[1729691349979,3.86983,2584.1,2583.5,3.87061]
[1729691350331,3.0,2584.1,2583.7,3.87035]
[1729691350915,3.0,2584.1,2583.5,0.7994]
[1729691351222,3.5085844,2584.0,2583.6,3.87048]
[1729691351692,3.5085844,2584.0,2583.6,7.74097]
[1729691351892,6.86982,2584.1,2583.6,7.74097]
[1729691352097,6.86982,2584.1,2583.6,3.87048]
[1729691352515,3.86982,2584.1,2583.7,3.87041]
[1729691353613,3.86958,2584.3,2583.9,0.7643]
[1729691353918,7.3780644,2584.4,2584.0,3.86996]
[1729691354218,3.86924,2584.5,2584.0,3.86985]
[1729691354382,7.3777844,2584.6,2584.0,3.86985]
[1729691354383,7.3776744,2584.6,2584.0,3.86985]
[1729691354583,7.3776744,2584.6,2584.2,3.86966]
[1729691354923,7.3780144,2584.4,2584.1,0.46921982]
[1729691355126,7.3780144,2584.4,2583.9,4.69233823]
[1729691355416,7.3780144,2584.4,2583.9,8.56236823]
[1729691356126,7.3780144,2584.4,2584.0,3.86989]
[1729691356478,7.3782644,2584.2,2583.9,0.05804823]
[1729691356884,0.7651,2584.4,2583.9,0.05804823]
[1729691356885,3.5085844,2584.0,2583.9,0.05804823]
[1729691357113,3.86989,2584.1,2583.9,0.05804823]
[1729691357926,7.73979,2584.1,2583.9,0.05804823]
[1729691358134,7.3785444,2584.0,2583.9,0.05804823]
[1729691358287,7.3785444,2584.0,2583.4,0.05805244]
[1729691358288,3.87069,2583.6,2583.4,0.05805244]
[1729691358630,7.3792744,2583.6,2583.4,0.05805244]
[1729691358835,3.87071,2583.5,2583.4,0.05805244]
[1729691359043,3.87071,2583.5,2582.5,3.87213]
[1729691359044,3.8711,2583.3,2583.0,0.7905]
[1729691359194,7.74222,2583.3,2583.0,0.7905]
[1729691359402,7.3797644,2583.2,2582.7,3.87182]
[1729691359598,7.3797644,2583.2,2582.8,3.87169]
[1729691359599,3.5085844,2583.2,2582.8,3.87169]
[1729691359799,7.3797544,2583.2,2582.8,3.87169]
[1729691360231,3.87103,2583.3,2582.8,3.87168]
[1729691360437,3.87103,2583.3,2582.9,3.87152]
[1729691360797,3.87118,2583.2,2582.8,3.92982708]
[1729691360996,3.87103,2583.3,2582.8,8.74616469]
[1729691361223,3.87103,2583.3,2582.9,3.87158]
[1729691362152,7.3794644,2583.4,2582.9,3.87158]
[1729691362845,3.5085844,2583.2,2582.8,4.81623761]
[1729691363004,3.5085844,2583.4,2582.9,3.87161]
[1729691363205,3.87109,2583.3,2582.9,3.87161]
[1729691364405,3.5085844,2583.4,2582.9,3.8715]
[1729691364406,7.3794644,2583.4,2582.9,3.8715]
[1729691365051,3.5085844,2583.4,2583.0,3.87137]
[1729691365342,4.63073,2583.5,2583.0,4.66617]
[1729691365343,3.87073,2583.5,2583.0,4.66617]
[1729691365500,3.87052,2583.7,2583.0,1.648567]
[1729691365706,3.87028,2583.8,2583.3,3.87089]
[1729691366030,3.5085844,2584.1,2583.6,3.87043]
[1729691366359,7.3784944,2584.1,2583.6,3.87043]
[1729691366554,7.3785444,2584.1,2583.6,3.87043]
[1729691366703,7.3787044,2583.9,2583.5,0.7948]
[1729691366903,3.87032,2583.8,2583.5,0.7948]
[1729691367141,3.5085844,2583.9,2583.5,4.66544]
[1729691367346,7.3787144,2583.9,2583.5,4.66544]
[1729691367677,3.5085844,2583.9,2583.5,0.7948]
[1729691367850,3.87035,2583.8,2583.5,0.7948]
[1729691368440,7.7407,2583.8,2583.5,0.7948]
[1729691368725,3.87035,2583.8,2583.5,0.7948]
[1729691369063,3.5085844,2583.9,2583.5,0.7948]
[1729691369064,7.3787044,2583.9,2583.5,0.7948]
[1729691369844,3.87028,2583.8,2583.5,0.7948]
[1729691370460,3.5085844,2583.9,2583.5,0.7948]
[1729691370461,7.3787144,2583.9,2583.5,0.7948]
[1729691370659,3.87027,2583.8,2583.5,0.7948]
[1729691371286,3.87056,2583.6,2583.2,0.82556351]
[1729691371486,3.87078,2583.5,2583.2,0.82556351]
[1729691371843,3.87092,2583.4,2583.2,0.05806351]
[1729691372049,7.3795944,2583.3,2583.2,0.05806351]
[1729691372357,3.87101,2583.3,2582.9,0.7675]
[1729691372545,3.87093,2583.4,2582.9,5.10874949]
[1729691372744,3.87093,2583.4,2583.0,3.87145]
[1729691373045,3.87093,2583.4,2582.9,5.10874949]
[1729691373046,3.5085844,2583.7,2583.3,0.7675]
[1729691373277,3.87035,2583.8,2583.3,0.7675]
[1729691373591,3.87034,2583.8,2583.3,4.63842]
[1729691373919,3.87034,2583.8,2583.4,3.87086]
[1729691374389,7.74072,2583.8,2583.3,4.63849]
[1729691374555,3.5085844,2583.7,2583.3,1.62425937]
[1729691374894,3.87058,2583.6,2583.3,1.62425937]
[1729691375088,3.5085844,2583.7,2583.3,5.49524937]
[1729691375251,7.3790044,2583.7,2583.3,1.62425937]
[1729691375853,3.5085844,2583.5,2583.2,0.0580637]
[1729691376083,3.87093,2583.4,2583.0,4.65033]
[1729691376289,3.87093,2583.4,2583.0,0.779]
[1729691376459,3.87116,2583.2,2583.0,0.779]
[1729691376862,3.87093,2583.4,2583.0,0.779]
[1729691377166,3.87102,2583.3,2583.0,0.779]
[1729691377364,3.5085844,2583.5,2583.0,0.779]
[1729691377573,4.63573,2583.6,2583.0,4.65039]
[1729691377815,7.3790244,2583.7,2583.1,3.87124]
[1729691378000,7.3790244,2583.7,2583.1,3.87123]
[1729691378493,7.3790244,2583.7,2583.0,5.502606]
[1729691378693,3.87063,2583.6,2583.0,5.502606]
[1729691378894,3.5085844,2583.7,2583.0,5.502596]
[1729691379225,7.3790644,2583.7,2583.1,3.87124]
[1729691379414,3.8706,2583.6,2583.1,3.87124]
[1729691379616,7.3790244,2583.7,2583.3,0.05806096]
[1729691380002,3.5085844,2583.7,2583.3,3.92906096]
[1729691380604,3.87066,2583.6,2583.1,3.87128]
[1729691380900,3.5085844,2583.9,2583.3,3.87093]
[1729691381101,3.8703,2583.8,2583.3,7.74188]
[1729691381304,3.86998,2584.0,2583.5,4.69165]
[1729691381518,3.8702,2583.9,2583.5,4.69165]
[1729691381703,7.3787844,2583.9,2583.5,4.69165]
[1729691381906,3.5085844,2583.9,2583.5,4.69165]
[1729691382639,7.3787244,2583.9,2583.5,4.69165]
[1729691383131,3.5085844,2583.9,2583.5,4.69162]
[1729691383334,7.3788044,2583.9,2583.5,4.69162]
[1729691383534,7.3788044,2583.9,2583.5,8.56224]
[1729691383731,0.7651,2584.1,2583.6,3.8705]
[1729691383732,3.86997,2584.0,2583.6,3.8705]
[1729691383933,3.87004,2584.0,2583.5,4.69162]
[1729691384096,3.87014,2583.9,2583.5,4.69162]
[1729691384432,4.2736844,2584.1,2583.2,3.9291253]
[1729691384433,7.3790844,2583.7,2583.2,3.9291253]
[1729691384638,7.3790844,2583.7,2583.2,7.8001853]
[1729691385095,3.87057,2583.6,2583.2,3.9291253]
[1729691385325,3.5085844,2583.7,2583.2,7.8002053]
[1729691385326,7.3790244,2583.7,2583.2,7.8002053]
[1729691385521,7.3790244,2583.7,2583.2,3.9291253]
[1729691385832,4.63492,2584.1,2583.3,3.87101]
[1729691385833,7.3787944,2583.9,2583.3,3.87101]
[1729691386028,3.87027,2583.8,2583.4,3.8708]
[1729691386243,7.3787244,2583.9,2583.5,3.87071]
[1729691387158,3.87006,2584.0,2583.6,3.87053]
[1729691387357,7.74013,2584.0,2583.6,4.63233]
[1729691387559,3.87006,2584.0,2583.6,0.7618]
[1729691387861,3.86996,2584.0,2583.6,4.63236]
[1729691388537,4.2736844,2584.1,2583.6,4.63236]
[1729691389040,3.86997,2584.0,2583.6,8.50283]
[1729691389251,3.86997,2584.0,2583.6,4.63227]
[1729691389723,3.87012,2583.9,2583.6,0.7618]
[1729691390253,7.3787044,2583.9,2583.6,0.7618]
[1729691391463,7.3785244,2584.1,2583.6,0.7618]
[1729691391759,7.3785244,2584.1,2583.6,4.63234]
[1729691391959,3.87001,2584.0,2583.6,0.7618]
[1729691392566,3.87013,2583.9,2583.6,0.7618]
[1729691392805,7.3787144,2583.9,2583.6,0.7618]
[1729691393702,7.3785244,2584.1,2583.6,0.7618]
[1729691393913,3.86999,2584.0,2583.6,0.7618]
[1729691394285,3.87018,2583.9,2583.5,3.8706]